bitfinex/quotes_BTCUSD_20251231
["timestamp","ask_amount","ask_price","bid_price","bid_amount"]
[1767182473494,0.01146894,89073.0,89062.0,0.294678]
[1767182473749,0.01122687,89072.0,89062.0,0.294678]
[1767182473951,0.01122712,89070.0,89062.0,0.294678]
[1767182474150,0.01122699,89071.0,89062.0,0.294678]
[1767182474451,0.06724907,89072.0,89062.0,0.294678]
[1767182474653,0.06736199,89071.0,89062.0,0.294678]
[1767182474970,0.0002422,89073.0,89055.0,0.3062]
[1767182475159,0.06736208,89071.0,89055.0,0.3062]
[1767182475339,0.01122699,89071.0,89055.0,0.3062]
[1767182475545,0.0676027,89073.0,89055.0,0.3062]
[1767182475756,0.01122699,89071.0,89055.0,0.3062]
[1767182476127,0.01122687,89072.0,89055.0,0.3062]
[1767182476326,0.01122737,89068.0,89055.0,0.3062]
[1767182476564,0.05613566,89070.0,89055.0,0.3062]
[1767182476770,0.01122699,89071.0,89055.0,0.3062]
[1767182476972,0.01122712,89070.0,89055.0,0.3062]
[1767182477148,0.06736274,89070.0,89055.0,0.3062]
[1767182477347,0.01122725,89069.0,89055.0,0.3062]
[1767182477745,0.01122725,89069.0,89059.0,0.38884923]
[1767182477986,0.06736274,89070.0,89059.0,0.68376923]
[1767182478146,0.01122712,89070.0,89059.0,0.68376923]
[1767182478706,0.06736204,89071.0,89059.0,0.29492]
[1767182479069,0.06736278,89070.0,89059.0,0.29492]
[1767182479273,0.01122712,89070.0,89059.0,0.29492]
[1767182479480,0.01122813,89062.0,89042.0,0.06226881]
[1767182479666,0.01122775,89065.0,89044.0,0.30532]
[1767182479667,0.24895,89064.0,89044.0,0.30532]
[1767182479868,0.01128,89065.0,89051.0,0.29404]
[1767182480093,0.01128,89065.0,89053.0,0.29404]
[1767182480297,0.01146894,89073.0,89060.0,0.29404]
[1767182480679,0.01128,89072.0,89064.0,0.29404]
[1767182480963,0.01122699,89071.0,89064.0,0.29404]
[1767182481139,0.01122712,89070.0,89064.0,0.29404]
[1767182481320,0.01122699,89071.0,89064.0,0.29404]
[1767182481509,0.07864164,89072.0,89064.0,0.29404]
[1767182481929,0.01122699,89071.0,89064.0,0.29404]
[1767182482931,0.01122712,89070.0,89064.0,0.29404]
[1767182483132,0.01122725,89069.0,89064.0,0.29404]
[1767182483556,0.06741449,89072.0,89060.0,0.29404]
[1767182484152,0.02250687,89072.0,89060.0,0.29404]
[1767182484763,0.01122699,89071.0,89060.0,0.29404]
[1767182484959,0.06736204,89071.0,89060.0,0.29404]
[1767182485186,0.01122725,89069.0,89060.0,0.29404]
[1767182485384,0.06736296,89070.0,89060.0,0.29404]
[1767182485583,0.01122737,89068.0,89060.0,0.29404]
[1767182485787,0.01122737,89068.0,89047.0,0.01123002]
[1767182485788,0.00055,89060.0,89051.0,0.29404]
[1767182485985,0.01122851,89059.0,89052.0,0.01128]
[1767182486166,0.05669311,89060.0,89052.0,0.01128]
[1767182486374,0.05669311,89060.0,89046.0,0.29404]
[1767182486375,0.01122851,89059.0,89046.0,0.29404]
[1767182486709,0.22454643,89069.0,89035.0,0.13384759]
[1767182486710,0.01122939,89052.0,89047.0,0.01128]
[1767182486850,0.00055,89047.0,89041.0,0.01128]
[1767182487058,0.00055,89047.0,89036.0,0.29404]
[1767182487454,0.06737886,89049.0,89036.0,0.29404]
[1767182487659,0.05614776,89051.0,89036.0,0.29404]
[1767182487859,0.05614828,89050.0,89036.0,0.29404]
[1767182488061,0.06737792,89050.0,89036.0,0.29404]
[1767182488380,0.01122964,89050.0,89036.0,0.29404]
[1767182488579,0.01122977,89049.0,89036.0,0.29404]
[1767182488774,0.01122989,89048.0,89036.0,0.29404]
[1767182489249,0.01122977,89049.0,89036.0,0.30532]
[1767182490046,0.01122989,89048.0,89036.0,0.30532]
[1767182490225,0.01123002,89047.0,89036.0,0.30532]
[1767182490791,0.01128,89052.0,89036.0,0.30532]
[1767182490946,0.05613745,89068.0,89048.0,0.29404]
[1767182491151,0.00010601,89068.0,89050.0,0.29404]
[1767182491351,0.0112275,89067.0,89050.0,0.29404]
[1767182491568,0.01122762,89066.0,89050.0,0.29404]
[1767182491765,0.01122775,89065.0,89050.0,0.29404]
[1767182491974,0.01122838,89060.0,89050.0,0.29404]
[1767182492173,0.06737035,89060.0,89050.0,0.29404]
[1767182492398,0.06737035,89060.0,89041.0,0.01123078]
[1767182492399,0.01122876,89057.0,89051.0,0.01128]
[1767182492622,0.01122876,89057.0,89047.0,0.01128]
[1767182492766,0.01122876,89057.0,89041.0,0.29404]
[1767182492968,0.27717952,89051.0,89035.0,0.29404]
[1767182493184,0.27717952,89051.0,89037.0,0.01128]
[1767182493407,0.27717952,89051.0,89035.0,0.29404]
[1767182493408,0.26595,89051.0,89035.0,0.29404]
[1767182493606,0.06738068,89047.0,89034.0,0.01128]
[1767182493781,0.01123002,89047.0,89034.0,0.01128]
[1767182493981,0.32209959,89048.0,89034.0,0.01128]
[1767182494386,0.33332944,89048.0,89034.0,0.01128]
[1767182494847,0.01123002,89047.0,89034.0,0.01128]
[1767182495267,0.01123015,89046.0,89034.0,0.01128]
[1767182495472,0.01123002,89047.0,89034.0,0.01128]
[1767182495793,0.33332944,89048.0,89034.0,0.01128]
[1767182496384,0.01123002,89047.0,89034.0,0.01128]
[1767182496651,0.06738103,89046.0,89034.0,0.01128]
[1767182497054,0.06738103,89046.0,89032.0,0.06032452]
[1767182497266,0.26699,89045.0,89033.0,0.06032452]
[1767182497471,0.26699,89045.0,89029.0,0.00054392]
[1767182497472,0.01123103,89039.0,89029.0,0.00054392]
[1767182497669,0.05615341,89042.0,89030.0,0.25938637]
[1767182497836,0.01123078,89041.0,89030.0,0.25946857]
[1767182498231,0.06738406,89042.0,89030.0,0.25946857]
[1767182498434,0.06738406,89042.0,89030.0,8.22e-05]
[1767182498638,0.01123078,89041.0,89030.0,0.25946857]
[1767182498838,0.0112309,89040.0,89030.0,8.22e-05]
[1767182499065,0.0112309,89040.0,89030.0,0.25946857]
[1767182499298,0.01123078,89041.0,89030.0,0.25946857]
[1767182499508,0.06738286,89044.0,89030.0,0.25946857]
[1767182499632,0.01123052,89043.0,89030.0,0.25946857]
[1767182499830,0.01123065,89042.0,89030.0,0.25946857]
[1767182500792,0.01123078,89041.0,89030.0,0.25946857]
[1767182501138,0.06738393,89042.0,89030.0,0.25946857]
[1767182501390,0.01123078,89041.0,89030.0,0.25946857]
[1767182501747,0.01123065,89042.0,89030.0,8.22e-05]
[1767182501936,0.01123078,89041.0,89030.0,8.22e-05]
[1767182502141,0.06738602,89040.0,89030.0,8.22e-05]
[1767182502339,0.01123179,89033.0,89030.0,8.22e-05]
[1767182502551,0.01123179,89033.0,89030.0,2e-07]
[1767182502756,0.05615824,89035.0,89030.0,2e-07]
[1767182502974,0.01123166,89034.0,89030.0,2e-07]
[1767182503607,0.06738922,89035.0,89030.0,2e-07]
[1767182503808,0.01123179,89033.0,89030.0,2e-07]
[1767182504559,0.06739014,89034.0,89030.0,2e-07]
[1767182504854,0.01123166,89034.0,89030.0,2e-07]
[1767182505197,0.01123179,89033.0,89030.0,2e-07]
[1767182505402,0.05616021,89031.0,89030.0,2e-07]
[1767182506424,0.32450021,89031.0,89030.0,2e-07]
[1767182506826,0.05616021,89031.0,89030.0,2e-07]
[1767182507253,0.01123179,89033.0,89030.0,2e-07]
[1767182508561,0.06739085,89033.0,89030.0,2e-07]
[1767182508790,0.27970115,89038.0,89030.0,2e-07]
[1767182508791,0.0112304,89044.0,89034.0,0.29404]
[1767182509061,0.02251052,89043.0,89034.0,0.29404]
[1767182509264,0.01123065,89042.0,89034.0,0.29404]
[1767182509689,0.06738399,89042.0,89034.0,0.29404]
[1767182509875,0.01123065,89042.0,89034.0,0.29404]
[1767182510261,0.06738412,89042.0,89034.0,0.29404]
[1767182510968,0.06738554,89040.0,89034.0,0.29404]
[1767182511175,0.01123115,89038.0,89030.0,0.25938637]
[1767182511379,0.06738672,89039.0,89030.0,0.25938637]
[1767182511787,0.01123128,89037.0,89030.0,0.25938637]
[1767182512183,0.0673862,89039.0,89030.0,0.25938637]
[1767182512385,0.01123103,89039.0,89030.0,0.25938637]
[1767182512827,0.06738628,89039.0,89030.0,0.25938637]
[1767182513027,0.06738551,89040.0,89030.0,0.25938637]
[1767182513178,0.06738626,89039.0,89030.0,0.25938637]
[1767182513384,0.06738716,89038.0,89030.0,0.25938637]
[1767182513592,0.01123128,89037.0,89030.0,0.25938637]
[1767182513763,0.06738716,89038.0,89030.0,0.25938637]
[1767182514165,0.01123115,89038.0,89030.0,0.25938637]
[1767182514369,0.0112309,89040.0,89030.0,0.25938637]
[1767182514589,0.0561545,89041.0,89030.0,0.25938637]
[1767182514590,0.06738528,89041.0,89030.0,0.25938637]
[1767182514790,0.01123065,89042.0,89030.0,0.25938637]
[1767182515007,0.06738524,89041.0,89030.0,0.25938637]
[1767182515170,0.01123078,89041.0,89031.0,0.30861]
[1767182515370,0.0112309,89040.0,89031.0,0.30861]
[1767182515575,0.06738485,89041.0,89031.0,0.30861]
[1767182515783,0.13798288,89178.0,89031.0,0.30861]
[1767182515784,0.2813,89057.0,89041.0,0.000631]
[1767182516065,0.01128,89049.0,89042.0,0.30861]
[1767182517174,0.010849,89049.0,89042.0,0.30861]
[1767182518414,0.01128,89055.0,89042.0,0.30861]
[1767182518661,0.01128,89055.0,89046.0,0.30861]
[1767182518849,0.01128,89055.0,89039.0,0.0002]
[1767182518850,0.000549,89042.0,89040.0,0.01128]
[1767182519010,0.05614823,89050.0,89040.0,0.01128]
[1767182519212,0.01122977,89049.0,89040.0,0.01128]
[1767182519872,0.06737896,89049.0,89040.0,0.01128]
[1767182520160,0.01123002,89047.0,89040.0,0.01128]
[1767182520314,0.01123002,89047.0,89039.0,0.0002]
[1767182520315,0.001099,89040.0,89039.0,0.0002]
[1767182520852,0.01123052,89043.0,89039.0,0.0002]
[1767182521473,0.01123052,89043.0,89033.0,0.07160452]
[1767182521986,0.06738317,89043.0,89033.0,0.07160452]
[1767182522186,0.06738317,89043.0,89033.0,0.06032452]
[1767182522389,0.01123065,89042.0,89034.0,0.06032452]
[1767182522670,0.02251027,89045.0,89029.0,0.00054392]
[1767182522671,0.01123179,89033.0,89029.0,0.00054392]
[1767182522813,0.01123141,89036.0,89029.0,0.00054392]
[1767182523040,0.01123166,89034.0,89029.0,0.00054392]
[1767182523237,0.06739018,89034.0,89029.0,0.00054392]
[1767182523483,0.01123166,89034.0,89029.0,0.00054392]
[1767182523937,0.06739154,89032.0,89029.0,0.00054392]
[1767182524149,0.01123305,89023.0,89020.0,0.000218]
[1767182524381,0.01123292,89024.0,89020.0,0.000218]
[1767182524535,0.01123305,89023.0,89020.0,0.000218]
[1767182524733,0.05616387,89026.0,89020.0,0.000218]
[1767182524734,0.01123279,89025.0,89020.0,0.000218]
[1767182525692,0.01123279,89025.0,89014.0,0.0002]
[1767182525693,0.01123305,89023.0,89014.0,0.0002]
[1767182526138,0.01123317,89022.0,89014.0,0.0002]
[1767182526479,0.01123305,89023.0,89014.0,0.0002]
[1767182526892,0.01123267,89026.0,89014.0,0.0002]
[1767182527087,0.05616421,89025.0,89014.0,0.0002]
[1767182527297,0.067397,89025.0,89014.0,0.0002]
[1767182527482,0.01123279,89025.0,89014.0,0.0002]
[1767182527887,0.05616271,89028.0,89014.0,0.0002]
[1767182528087,0.05616339,89026.0,89014.0,0.0002]
[1767182528296,0.06739606,89026.0,89014.0,0.0002]
[1767182528500,0.01123279,89025.0,89014.0,0.0002]
[1767182528949,0.01123292,89024.0,89014.0,0.0002]
[1767182529729,0.0112333,89021.0,89014.0,0.0002]
[1767182529926,0.00019999,89014.0,89007.0,0.0002178]
[1767182530127,0.01123456,89011.0,89007.0,0.0002178]
[1767182530350,0.01123469,89010.0,89007.0,0.0002178]
[1767182530560,0.05617449,89009.0,89007.0,8.58e-05]
[1767182530814,0.06740833,89010.0,89007.0,8.58e-05]
[1767182531234,0.06740821,89010.0,89007.0,8.58e-05]
[1767182531445,0.01123469,89010.0,89007.0,8.58e-05]
[1767182531671,0.01123444,89012.0,89007.0,8.58e-05]
[1767182531858,0.05617035,89015.0,89007.0,8.58e-05]
[1767182532056,0.06740413,89016.0,89007.0,8.58e-05]
[1767182532266,0.07868284,89017.0,89016.0,0.000349]
[1767182532898,0.07868284,89017.0,89007.0,0.25947217]
[1767182533287,0.07868284,89017.0,89007.0,8.58e-05]
[1767182533496,0.01123393,89016.0,89007.0,8.58e-05]
[1767182533963,0.06740365,89016.0,89007.0,8.58e-05]
[1767182534118,0.01123393,89016.0,89007.0,8.58e-05]
[1767182534322,0.07868284,89017.0,89007.0,8.58e-05]
[1767182534744,0.01123406,89015.0,89007.0,8.58e-05]
[1767182535144,0.06740437,89015.0,89007.0,8.58e-05]
[1767182535342,0.01123418,89014.0,89007.0,8.58e-05]
[1767182540093,0.06740536,89014.0,89007.0,8.58e-05]
[1767182540940,0.01123393,89016.0,89007.0,8.58e-05]
[1767182541116,0.07868323,89017.0,89007.0,8.58e-05]
[1767182541117,0.01128,89017.0,89014.0,0.000349]
[1767182541321,0.0112333,89021.0,89016.0,0.00055]
[1767182541542,0.01128,89020.0,89010.0,0.25958265]
[1767182541859,0.01128,89020.0,89010.0,0.54768265]
[1767182542420,0.02251343,89020.0,89010.0,0.2881]
[1767182542629,0.02251343,89020.0,89000.0,0.01128]
[1767182542630,0.28382,89015.0,88981.0,0.2881]
[1767182542890,0.27081974,88991.0,88980.0,0.2883178]
[1767182543007,0.01128,88990.0,88980.0,0.2883178]
[1767182543221,0.05618861,88986.0,88980.0,0.2883178]
[1767182543455,0.01123759,88987.0,88974.0,0.286725]
[1767182543456,0.01123848,88980.0,88974.0,0.286725]
[1767182543645,0.01128,88979.0,88974.0,0.286725]
[1767182544406,0.01104644,89027.0,88974.0,0.28683101]
[1767182544407,0.01128,88978.0,88974.0,0.28683101]
[1767182544607,0.01128,88977.0,88974.0,0.00010601]
[1767182544808,0.01128,88977.0,88975.0,0.2881]
[1767182546185,0.00355207,88977.0,88975.0,0.2881]
[1767182548543,0.06742455,88989.0,88975.0,0.2881]
[1767182548801,0.01128,88988.0,88975.0,0.2881]
[1767182549344,0.01128,88988.0,88974.0,0.00010601]
[1767182549345,0.01128,88988.0,88979.0,0.2881]
[1767182549798,0.04496,88995.0,88979.0,0.2881]
[1767182549999,0.01128,88994.0,88982.0,0.2881]
[1767182550349,0.01128,88993.0,88982.0,0.2881]
[1767182551354,0.01128,88992.0,88982.0,0.2881]
[1767182551762,0.01123519,89006.0,88990.0,0.2881]
[1767182551956,0.01123494,89008.0,88990.0,0.2881]
[1767182551957,0.01128,89005.0,88991.0,0.2881]
[1767182552376,0.07869198,89005.0,88991.0,0.2881]
[1767182552621,0.01128,89005.0,88991.0,0.2881]
[1767182552846,0.02251532,89005.0,88991.0,0.2881]
[1767182553069,0.01123545,89004.0,88991.0,0.2881]
[1767182553293,0.02251532,89005.0,88991.0,0.2881]
[1767182553671,0.07869222,89005.0,88991.0,0.2881]
[1767182553832,0.01123545,89004.0,88991.0,0.2881]
[1767182554382,0.07869222,89005.0,88991.0,0.2881]
[1767182555079,0.06741294,89004.0,88991.0,0.2881]
[1767182555443,0.01123557,89003.0,88991.0,0.2881]
[1767182555644,0.01123545,89004.0,88991.0,0.2881]
[1767182555846,0.02251532,89005.0,88991.0,0.2881]
[1767182556047,0.07869205,89005.0,88991.0,0.2881]
[1767182556280,0.01123545,89004.0,88991.0,0.2881]
[1767182556627,0.07869205,89005.0,88991.0,0.2881]
[1767182557537,0.01123545,89004.0,88991.0,0.2881]
[1767182557808,0.01123557,89003.0,88991.0,0.2881]
[1767182558105,0.06741297,89004.0,88991.0,0.2881]
[1767182558310,0.01123557,89003.0,88991.0,0.2881]
[1767182558801,0.06741297,89004.0,88991.0,0.2881]
[1767182559006,0.01123557,89003.0,88991.0,0.2881]
[1767182559352,0.0112357,89002.0,88991.0,0.2881]
[1767182560498,0.06741353,89003.0,88991.0,0.2881]
[1767182561065,0.01123557,89003.0,88991.0,0.2881]
[1767182561272,0.01123507,89007.0,88994.0,0.2881]
[1767182561471,0.01128,89002.0,88994.0,0.2881]
[1767182562786,0.001099,88994.0,88984.0,0.06742764]
[1767182562988,0.001099,88994.0,88986.0,0.01123772]
[1767182563279,0.001099,88994.0,88987.0,0.2881]
[1767182563488,0.01128,89002.0,88987.0,0.2881]
[1767182563688,0.07869443,89002.0,88987.0,0.2881]
[1767182563806,0.01128,89002.0,88987.0,0.2881]
[1767182564209,0.01128,89002.0,88989.0,0.2881]
[1767182564453,0.01123406,89015.0,88994.0,0.2881]
[1767182564654,0.01128,89014.0,89003.0,0.2881]
[1767182565911,0.01128,89014.0,89003.0,0.28820601]
[1767182566116,0.01128,89013.0,89003.0,0.28820601]
[1767182566554,0.01128,89013.0,89004.0,0.2881]
[1767182570173,0.001099,89004.0,89003.0,0.00010601]
[1767182570384,0.32267445,89004.0,88990.0,0.25954153]
[1767182570590,0.01123557,89003.0,88993.0,0.0002]
[1767182570817,0.37775292,89004.0,88993.0,0.25974153]
[1767182571020,0.32157545,89004.0,88993.0,0.0002]
[1767182571227,0.31034,89004.0,88993.0,0.0002]
[1767182571857,0.32157545,89004.0,88993.0,0.0002]
[1767182572061,0.31034,89004.0,88993.0,0.0002]
[1767182572232,0.23592975,89010.0,88993.0,0.0002]
[1767182572233,0.04496,89010.0,88995.0,0.29761]
[1767182572435,0.01123406,89015.0,89001.0,0.29761]
[1767182572436,0.01128,89009.0,89001.0,0.29761]
[1767182573210,0.02251481,89009.0,89001.0,0.29761]
[1767182574155,0.07868923,89009.0,89001.0,0.29761]
[1767182574444,0.01128,89009.0,89001.0,0.29761]
[1767182574912,0.01123494,89008.0,89001.0,0.29761]
[1767182575102,0.02251481,89009.0,89001.0,0.29761]
[1767182575922,0.01128,89009.0,89001.0,0.29761]
[1767182576127,0.02251481,89009.0,89001.0,0.29761]
[1767182577144,0.01128,89009.0,89001.0,0.29761]
[1767182579157,0.01128,89008.0,89001.0,0.29761]
[1767182582422,0.01128,89008.0,88994.0,0.29761]
[1767182582571,0.01128,89008.0,88998.0,0.25954153]
[1767182582765,0.01128,89008.0,88998.0,0.55715153]
[1767182583210,0.02251494,89008.0,88998.0,0.55715153]
[1767182583425,0.02251494,89008.0,88998.0,0.29761]
[1767182583426,0.01123532,89005.0,88998.0,0.29761]
[1767182583626,0.0674127,89004.0,88996.0,0.29761]
[1767182584269,0.01123545,89004.0,88993.0,0.0002]
[1767182584474,0.0112357,89002.0,88993.0,0.0002]
[1767182584613,0.01128,89001.0,88993.0,0.0002]
[1767182585631,0.07869507,89001.0,88993.0,0.0002]
[1767182585829,0.01128,89001.0,88993.0,0.0002]
[1767182586484,0.02251582,89001.0,88993.0,0.0002]
[1767182587128,0.07869508,89001.0,88993.0,0.0002]
[1767182587325,0.05617984,89000.0,88993.0,0.0002]
[1767182587610,0.01123608,88999.0,88993.0,0.0002]
[1767182587877,0.01123595,89000.0,88993.0,0.0002]
[1767182588085,0.07869508,89001.0,88993.0,0.0002]
[1767182589056,0.01123595,89000.0,88993.0,0.0002]
[1767182589256,0.07869508,89001.0,88993.0,0.0002]
[1767182590243,0.06741583,89000.0,88993.0,0.0002]
[1767182590440,0.07869508,89001.0,88993.0,0.0002]
[1767182590648,0.01128,89001.0,88993.0,0.0002]
[1767182593475,0.02251582,89001.0,88993.0,0.0002]
[1767182593800,0.01128,89001.0,88993.0,0.0002]
[1767182593973,0.01128,89001.0,88993.0,0.29781]
[1767182594134,0.010731,89001.0,88993.0,0.29781]
[1767182596539,0.06741238,89005.0,88993.0,0.29781]
[1767182596794,0.01128,89004.0,88993.0,0.29781]
[1767182598588,0.02251545,89004.0,88993.0,0.29781]
[1767182598808,0.01128,89004.0,88993.0,0.29781]
[1767182599143,0.02251545,89004.0,88993.0,0.29781]
[1767182599285,0.01128,89004.0,88993.0,0.29781]
[1767182600385,0.02251545,89004.0,88993.0,0.29781]
[1767182600716,0.01128,89004.0,88993.0,0.29781]
[1767182601929,0.02251545,89004.0,88993.0,0.29781]
[1767182602330,0.07869276,89004.0,88993.0,0.29781]
[1767182602784,0.06741356,89003.0,88993.0,0.29781]
[1767182602940,0.0112357,89002.0,88993.0,0.29781]
[1767182603144,0.0674143,89002.0,88993.0,0.29781]
[1767182603456,0.06741585,89000.0,88993.0,0.0002]
[1767182603667,0.06741585,89000.0,88982.0,0.05619058]
[1767182603668,0.000549,88993.0,88977.0,0.29919]
[1767182603862,0.01128,88992.0,88977.0,0.29954346]
[1767182604080,0.01128,88992.0,88980.0,0.55881649]
[1767182604325,0.01128,88992.0,88981.0,0.29919]
[1767182604720,0.01128,88992.0,88981.0,0.31042835]
[1767182605062,0.01128,88992.0,88981.0,0.29919]
[1767182605063,0.01073,88992.0,88981.0,0.29919]
[1767182605479,0.0002079,89001.0,88983.0,0.3553805]
[1767182605617,0.01128,89000.0,88988.0,0.29919]
[1767182606023,0.02251595,89000.0,88988.0,0.29919]
[1767182607032,0.02251595,89000.0,88991.0,0.28318]
[1767182607673,0.01123608,88999.0,88991.0,0.28318]
[1767182608082,0.02251595,89000.0,88991.0,0.28318]
[1767182608284,0.01123608,88999.0,88991.0,0.28318]
[1767182608518,0.0112362,88998.0,88991.0,0.28318]
[1767182608707,0.01123646,88996.0,88991.0,0.28318]
[1767182608913,0.01123646,88996.0,88980.0,0.30636848]
[1767182609209,0.01123646,88996.0,88981.0,0.29513]
[1767182609564,0.01123658,88995.0,88981.0,0.29513]
[1767182609764,0.06742029,88994.0,88981.0,0.29513]
[1767182610176,0.01123734,88989.0,88977.0,0.00035346]
[1767182610358,0.01123721,88990.0,88977.0,0.00035346]
[1767182610555,0.01123721,88990.0,88977.0,0.29548346]
[1767182610798,0.01123734,88989.0,88980.0,0.25962649]
[1767182611203,0.01123759,88987.0,88977.0,0.29548346]
[1767182611583,0.06742558,88987.0,88977.0,0.29548346]
[1767182611792,0.01123772,88986.0,88977.0,0.29548346]
[1767182611993,0.06742558,88987.0,88977.0,0.29548346]
[1767182612188,0.01123784,88985.0,88977.0,0.00035346]
[1767182612374,0.02251772,88986.0,88977.0,0.00035346]
[1767182612843,0.01123784,88985.0,88977.0,0.00035346]
[1767182613208,0.07870635,88986.0,88977.0,0.00035346]
[1767182613738,0.01123784,88985.0,88977.0,0.00035346]
[1767182614439,0.01123822,88982.0,88977.0,0.00035346]
[1767182614644,0.0112381,88983.0,88977.0,0.00035346]
[1767182615002,0.06742788,88984.0,88977.0,0.00035346]
[1767182615400,0.06742725,88985.0,88977.0,4.6e-07]
[1767182615605,0.01123784,88985.0,88977.0,4.6e-07]
[1767182615842,0.02251772,88986.0,88977.0,4.6e-07]
[1767182616222,0.01123784,88985.0,88977.0,4.6e-07]
[1767182617039,0.01123797,88984.0,88977.0,4.6e-07]
[1767182617240,0.01123784,88985.0,88977.0,4.6e-07]
[1767182617455,0.05619177,88981.0,88977.0,4.6e-07]
[1767182617806,0.06743055,88982.0,88977.0,4.6e-07]
[1767182617994,0.0112381,88983.0,88977.0,4.6e-07]
[1767182618233,0.01123822,88982.0,88977.0,4.6e-07]
[1767182618425,0.06742863,88983.0,88977.0,4.6e-07]
[1767182618635,0.06742949,88982.0,88977.0,4.6e-07]
[1767182618830,0.01123848,88980.0,88977.0,4.6e-07]
[1767182619064,0.01128,88979.0,88977.0,4.6e-07]
[1767182619737,0.24919,88979.0,88977.0,4.6e-07]
[1767182619879,0.23791,88978.0,88977.0,4.6e-07]
[1767182620085,0.01128,88979.0,88977.0,4.6e-07]
[1767182620776,0.01128,88978.0,88977.0,0.29513046]
[1767182620886,0.010378,88978.0,88977.0,4.6e-07]
[1767182635026,0.06657166,88978.0,88977.0,4.6e-07]
[1767182635227,0.30815166,88978.0,88977.0,4.6e-07]
[1767182636293,0.30815166,88978.0,88967.0,0.0001155]
[1767182636294,0.0561976,88972.0,88967.0,0.0001155]
[1767182636472,0.01123936,88973.0,88967.0,0.00022146]
[1767182636796,0.06743897,88970.0,88967.0,0.00010596]
[1767182637092,0.01123923,88974.0,88960.0,0.27850257]
[1767182637093,0.01128,88969.0,88960.0,0.27850257]
[1767182637391,0.01128,88969.0,88960.0,0.27855821]
[1767182640739,0.01128,88970.0,88969.0,0.000221]
[1767182640886,0.01128,88970.0,88969.0,0.280321]
[1767182641326,0.01128,88970.0,88961.0,0.2801]
[1767182641955,0.01128,88970.0,88957.0,0.0001617]
[1767182641956,0.000328,88961.0,88957.0,0.0001617]
[1767182642177,0.011241,88960.0,88957.0,0.0001617]
[1767182642300,0.0787253,88961.0,88957.0,0.0001617]
[1767182642716,0.011241,88960.0,88957.0,0.0001617]
[1767182642977,0.02252088,88961.0,88957.0,0.0001617]
[1767182643181,0.011241,88960.0,88957.0,0.0001617]
[1767182643540,0.011241,88960.0,88957.0,7e-07]
[1767182644288,0.011241,88960.0,88944.0,0.02252302]
[1767182644289,0.01124151,88956.0,88941.0,0.2801]
[1767182644435,0.25962649,88967.0,88941.0,0.2801]
[1767182644436,0.0112405,88964.0,88956.0,0.000382]
[1767182644632,0.01128,88963.0,88956.0,0.2801]
[1767182645957,0.05620175,88967.0,88963.0,0.000382]
[1767182646169,0.01128,88966.0,88963.0,0.000382]
[1767182646395,0.01128,88966.0,88956.0,0.2801]
[1767182646684,0.06744048,88969.0,88956.0,0.2801]
[1767182646685,0.01128,88969.0,88960.0,0.2801]
[1767182647607,0.0001617,88971.0,88960.0,0.2801]
[1767182647756,0.01128,88970.0,88960.0,0.2801]
[1767182647952,0.01128,88970.0,88960.0,0.25962649]
[1767182648182,0.01128,88970.0,88961.0,0.2801]
[1767182651343,0.01128,88977.0,88963.0,0.34754359]
[1767182651547,0.01128,88977.0,88970.0,0.2801]
[1767182651949,0.00053745,88979.0,88970.0,0.2801]
[1767182652759,0.00064341,88979.0,88970.0,0.2801]
[1767182653360,0.00064341,88979.0,88971.0,0.2801]
[1767182653993,0.00064341,88979.0,88971.0,0.29133961]
[1767182654201,0.00064341,88979.0,88971.0,0.2801]
[1767182659040,0.00064341,88979.0,88971.0,0.29133961]
[1767182659390,0.00064341,88979.0,88971.0,0.2801]
[1767182659593,0.00064341,88979.0,88972.0,0.01123949]
[1767182659795,0.00064341,88979.0,88973.0,0.27351]
[1767182660602,0.001099,88973.0,88963.0,0.01124062]
[1767182660813,0.001099,88973.0,88963.0,0.06744327]
[1767182661015,0.24415,88978.0,88962.0,0.01124075]
[1767182661222,0.31158269,88978.0,88961.0,0.28475088]
[1767182661422,0.01123885,88977.0,88968.0,0.25962649]
[1767182661635,0.06743269,88978.0,88968.0,0.25962649]
[1767182662406,0.06807537,88979.0,88968.0,0.25962649]
[1767182662582,0.00064341,88979.0,88967.0,0.28479]
[1767182662781,0.00064341,88979.0,88969.0,0.25977477]
[1767182663124,0.00064341,88979.0,88974.0,0.27351]
[1767182663323,0.0006018,88979.0,88974.0,0.27351]
[1767182666231,0.0006018,88979.0,88969.0,0.54452464]
[1767182666715,0.0006018,88979.0,88969.0,0.53328477]
[1767182667078,0.0006018,88979.0,88969.0,0.27351]
[1767182667325,0.0006018,88979.0,88969.0,0.53328477]
[1767182667922,0.0006018,88979.0,88970.0,0.27351]
[1767182672642,0.000549,88970.0,88965.0,0.01124037]
[1767182672944,0.000549,88970.0,88965.0,0.28475037]
[1767182673142,0.0006018,88979.0,88966.0,0.01124024]
[1767182673443,0.0006018,88979.0,88969.0,0.25977477]
[1767182674008,0.0006018,88979.0,88965.0,0.27351]
[1767182674238,0.0006018,88979.0,88969.0,0.25977477]
[1767182676751,0.0118404,88979.0,88969.0,0.25977477]
[1767182676956,0.23897,88977.0,88961.0,0.01128]
[1767182677178,0.000549,88969.0,88961.0,0.07872492]
[1767182677407,0.23897,88977.0,88961.0,0.35223492]
[1767182677585,0.25020885,88977.0,88962.0,0.27351]
[1767182677761,0.0118404,88979.0,88963.0,0.05620309]
[1767182677956,0.0118404,88979.0,88969.0,0.25977477]
[1767182678386,0.01123873,88978.0,88969.0,0.25977477]
[1767182678584,0.01123885,88977.0,88969.0,0.25977477]
[1767182679025,0.000549,88969.0,88967.0,0.25977477]
[1767182679255,0.000549,88969.0,88964.0,0.27351]
[1767182679444,0.01123911,88975.0,88964.0,0.27351]
[1767182679639,0.01123898,88976.0,88965.0,0.25977477]
[1767182679990,0.01123911,88975.0,88965.0,0.25977477]
[1767182680827,0.01123923,88974.0,88961.0,0.01128]
[1767182681020,0.24758923,88974.0,88961.0,0.01128]
[1767182681544,0.01123936,88973.0,88961.0,0.01128]
[1767182681892,0.30378557,88974.0,88961.0,0.01128]
[1767182682094,0.23635,88974.0,88961.0,0.01128]
[1767182682936,0.01128,88975.0,88961.0,0.28479]
[1767182683603,0.01128,88975.0,88965.0,0.25977477]
[1767182683806,0.23533,88974.0,88960.0,0.0004094]
[1767182684034,0.01123987,88969.0,88960.0,0.25977517]
[1767182684423,0.01123974,88970.0,88960.0,0.25977517]
[1767182685492,0.01123987,88969.0,88960.0,0.25977517]
[1767182685634,0.01123974,88970.0,88960.0,0.25977517]